bitfinex-derivatives/quotes_ETHF0:USTF0_20240913
["timestamp","ask_amount","ask_price","bid_price","bid_amount"]
[1726246777655,2.37967122,2408.3,2408.2,1.86154]
[1726246777859,2.17199985,2408.3,2408.2,0.82358]
[1726246778761,2.17199985,2408.3,2408.2,0.41518]
[1726246780165,2.17199985,2408.3,2408.2,1.45314]
[1726246780364,2.37964923,2408.4,2408.2,1.03796]
[1726246780561,2.37964923,2408.3,2408.2,1.03796]
[1726246780862,2.37964923,2408.3,2408.2,1.91518]
[1726246781168,2.17199455,2408.3,2408.2,2.95314]
[1726246781360,2.17199455,2408.3,2408.2,1.91518]
[1726246782463,2.37964923,2408.3,2408.2,1.91518]
[1726246782871,2.17199455,2408.3,2408.2,1.91518]
[1726246784069,2.17199455,2408.3,2408.2,2.95314]
[1726246784264,2.92534385,2408.4,2408.3,0.41516]
[1726246784461,2.92534875,2408.4,2408.3,0.41516]
[1726246784762,2.69188962,2408.5,2408.4,0.41515]
[1726246784969,3.10707917,2408.5,2408.4,0.41515]
[1726246785271,2.69194917,2408.5,2408.4,0.41515]
[1726246785470,3.10707917,2408.5,2408.4,0.41515]
[1726246785872,2.69194917,2408.5,2408.4,0.41515]
[1726246787174,3.10708917,2408.5,2408.3,0.41515]
[1726246787371,5.01782915,2408.4,2408.3,0.41515]
[1726246787562,5.01801521,2408.4,2408.3,0.41515]
[1726246787764,2.71728523,2408.4,2408.3,0.41515]
[1726246788466,2.71729523,2408.4,2408.2,1.91517]
[1726246788664,9.66193523,2408.3,2407.9,1.5]
[1726246788868,3.13148121,2408.1,2407.9,0.41523]
[1726246789164,5.01840644,2408.0,2407.9,0.41523]
[1726246789370,5.42580644,2408.0,2407.9,0.41523]
[1726246790079,5.42582475,2408.0,2407.9,0.41523]
[1726246790867,3.12475523,2408.0,2407.8,1.91523]
[1726246791073,0.20765817,2407.9,2407.8,1.91523]
[1726246792571,0.20765817,2407.9,2407.8,6.06803]
[1726246792572,2.38028228,2407.9,2407.8,6.06803]
[1726246792779,2.17262411,2408.1,2407.8,12.69093]
[1726246793073,1.62925464,2407.9,2407.8,5.60618]
[1726246793372,1.62925464,2407.9,2407.8,2.95338]
[1726246793567,1.62925464,2407.9,2407.8,13.10618]
[1726246794068,1.62925464,2407.9,2407.8,7.10618]
[1726246794578,1.62925464,2407.9,2407.8,13.49208]
[1726246795867,1.62925464,2407.9,2407.8,7.49208]
[1726246796066,1.62925464,2407.9,2407.8,13.49208]
[1726246796870,1.62925464,2407.9,2407.8,7.49208]
[1726246797061,1.62925464,2407.9,2407.8,2.30115]
[1726246797259,2.17262411,2408.0,2407.9,0.41523]
[1726246797464,0.98057708,2408.0,2407.9,0.41523]
[1726246799575,5.79203601,2408.0,2407.9,0.41523]
[1726246800468,0.57847708,2408.0,2407.9,0.41523]
[1726246800673,2.75241176,2408.0,2407.9,0.41523]
[1726246800868,2.38159937,2408.0,2407.9,5.60612]
[1726246801070,2.38159937,2408.0,2407.9,6.64421]
[1726246801272,2.71604051,2408.2,2408.0,1.45327]
[1726246801273,2.17392018,2408.1,2408.0,1.45327]
[1726246801569,2.71604051,2408.2,2408.1,0.4152]
[1726246802570,6.86100184,2408.2,2408.0,0.41521]
[1726246802765,3.48262184,2408.1,2407.9,1.91523]
[1726246802969,5.38725914,2408.0,2407.9,1.91523]
[1726246803170,5.38718182,2408.0,2407.9,1.91523]
[1726246803370,2.66862184,2408.0,2407.9,1.91523]
[1726246803568,3.09464406,2408.0,2407.9,1.91523]
[1726246803772,5.3876659,2408.0,2407.9,1.91523]
[1726246803972,5.0120659,2408.0,2407.9,7.10612]
[1726246804173,2.38280279,2408.0,2407.9,7.48432]
[1726246804375,0.20767662,2408.0,2407.9,7.48432]
[1726246804572,2.71904406,2408.1,2408.0,2.49132]
[1726246804772,1.63151292,2408.1,2408.0,7.79741181]
[1726246805076,1.63143409,2408.3,2408.2,2.4911]
[1726246805271,2.17519492,2408.3,2408.2,10.42791181]
[1726246805470,1.08770991,2408.3,2408.2,15.07159314]
[1726246805972,2.1755144,2408.5,2408.3,0.41516]
[1726246805973,2.1755144,2408.4,2408.3,0.41516]
[1726246806177,2.17538445,2408.4,2408.3,6.16088]
[1726246806480,2.17538445,2408.5,2408.4,1.45302]
[1726246806971,2.17538445,2408.5,2408.4,5.60502]
[1726246807173,2.17538445,2408.6,2408.5,0.41513]
[1726246807475,2.71904406,2408.6,2408.5,1.91511]
[1726246807679,2.06439251,2408.6,2408.5,1.5]
[1726246808178,16.72388407,2408.6,2408.2,1.5]
[1726246808368,12.24848145,2408.5,2408.2,1.5]
[1726246808569,9.02561412,2408.4,2408.1,0.41519]
[1726246808877,2.06439251,2408.3,2408.2,1.5]
[1726246809070,2.47349251,2408.3,2408.2,1.5]
[1726246809472,2.47349251,2408.3,2408.2,1.91518]
[1726246809681,2.47349251,2408.3,2408.2,5.12298]
[1726246809875,2.47349251,2408.3,2408.2,1.91518]
[1726246809876,5.1926161,2408.3,2408.2,1.91518]
[1726246810283,4.7835161,2408.3,2408.2,5.12298]
[1726246810483,3.10822359,2408.4,2408.3,0.41516]
[1726246810686,4.78366624,2408.4,2408.3,0.41516]
[1726246810989,3.1120557,2408.5,2408.4,0.41515]
[1726246811175,3.1120557,2408.5,2408.4,3.65515]
[1726246811376,4.78363229,2408.5,2408.4,3.65515]
[1726246811571,4.78363229,2408.5,2408.4,4.69302]
[1726246811572,2.17491226,2408.5,2408.4,4.69302]
[1726246813281,2.17491226,2408.6,2408.5,0.41513]
[1726246813477,2.17491226,2408.6,2408.5,4.03873]
[1726246813681,2.17491226,2408.6,2408.5,5.07656]
[1726246813881,2.17491226,2408.6,2408.5,12.43636]
[1726246814185,0.393,2408.8,2408.7,0.41509]
[1726246814493,0.393,2408.8,2408.7,3.65509]
[1726246814988,3.11064541,2408.8,2408.7,3.65509]
[1726246815289,0.393,2408.8,2408.7,3.65509]
[1726246815491,2.56608713,2408.8,2408.7,3.65509]
[1726246815689,0.393,2408.8,2408.7,3.65509]
[1726246816789,2.56574604,2408.8,2408.7,3.65509]
[1726246818291,2.17274604,2408.8,2408.7,4.69283]
[1726246818692,2.17274604,2408.9,2408.8,1.45278]
[1726246818891,3.48194541,2409.0,2408.9,1.45272]
[1726246818892,2.55344604,2409.0,2408.9,1.45272]
[1726246819392,2.55344604,2409.0,2408.9,0.41506]
[1726246819700,5.14556641,2409.0,2408.9,0.41506]
[1726246820085,5.14556641,2409.0,2408.9,3.65506]
[1726246820483,0.3807,2409.0,2408.9,3.65506]
[1726246820895,2.55182458,2409.0,2408.9,3.65506]
[1726246821085,2.55180842,2409.0,2408.9,3.65506]
[1726246822887,0.3807,2409.0,2408.9,3.65506]
[1726246823092,0.3807,2409.0,2408.9,5.07182]
[1726246823593,0.3807,2409.0,2408.9,3.65506]
[1726246824888,0.58829419,2409.0,2408.9,3.65506]
[1726246826192,0.3807,2409.0,2408.9,3.65506]
[1726246826598,2.17110842,2409.1,2409.0,0.41504]
[1726246826893,2.57350842,2409.2,2409.0,4.69265]
[1726246827102,2.57350842,2409.2,2409.1,0.41503]
[1726246827392,2.78108847,2409.2,2409.1,0.41503]
[1726246828291,2.78108847,2409.2,2409.1,1.4526]
[1726246828292,0.609983,2409.2,2409.1,1.4526]
[1726246828497,0.4024,2409.2,2409.1,1.4526]
[1726246828801,1.48662129,2409.2,2409.1,1.4526]
[1726246828998,1.08422129,2409.2,2409.1,1.4526]
[1726246829189,1.08422129,2409.2,2409.1,2.87677]
[1726246829696,1.08422129,2409.2,2409.1,9.1982]
[1726246829906,1.08422129,2409.3,2409.2,1.45254]
[1726246830093,1.08422129,2409.3,2409.2,6.13697]
[1726246830287,1.08422129,2409.3,2409.2,16.28737]
[1726246830488,1.08422129,2409.4,2409.3,1.45248]
[1726246830696,1.08422129,2409.4,2409.3,5.09318]
[1726246830895,1.08422129,2409.4,2409.3,9.24358]
[1726246831405,1.08422129,2409.4,2409.3,4.69248]
[1726246831889,1.08422129,2409.4,2409.3,9.88037]
[1726246832097,1.08422129,2409.5,2409.4,1.45241]
[1726246832298,1.08422129,2409.5,2409.4,4.66021]
[1726246833396,1.08422129,2409.5,2409.4,5.04911]
[1726246833593,1.49762129,2409.6,2409.5,1.45236]
[1726246833791,1.08422129,2409.6,2409.5,6.14476]
[1726246833994,1.47552129,2409.7,2409.6,1.4523]
[1726246834187,1.08422129,2409.7,2409.6,5.72966]
[1726246834388,1.08422129,2409.9,2409.6,8.83556]
[1726246834597,1.08422129,2409.9,2409.8,3.6549]
[1726246835191,1.85592129,2410.0,2409.9,0.41489]
[1726246835601,6.00552129,2410.0,2409.9,0.41489]
[1726246835993,6.00552129,2410.0,2409.7,0.41491]
[1726246836202,1.49708129,2409.9,2409.7,0.41491]
[1726246836395,2.55690842,2409.8,2409.6,3.24]
[1726246836596,0.20754926,2409.7,2409.4,6.86277]
[1726246836797,2.78005768,2409.6,2409.4,3.2078]
[1726246837001,0.62250926,2409.5,2409.4,3.2078]
[1726246837198,0.41497,2409.4,2409.3,0.36459526]
[1726246837399,2.77028898,2409.4,2409.3,0.77958526]
[1726246837596,6.92068898,2409.4,2409.3,0.41499]
[1726246838002,0.59918056,2409.4,2409.3,0.41499]
[1726246838293,0.59918056,2409.4,2409.3,0.83209]
[1726246838796,0.59915974,2409.4,2409.3,0.83209]
[1726246839803,2.57250842,2409.6,2409.4,1.03744]
[1726246840012,2.57250842,2409.6,2409.5,1.45236]
[1726246840013,0.4014,2409.6,2409.5,1.45236]
[1726246840197,0.3818,2409.7,2409.6,0.41494]
[1726246840394,0.58933498,2409.7,2409.6,0.41494]
[1726246840594,2.7604434,2409.7,2409.6,0.41494]
[1726246840897,0.58933498,2409.7,2409.6,0.41494]
[1726246841099,0.58933498,2409.7,2409.6,4.6601]
[1726246841304,2.17110842,2409.8,2409.7,0.41492]
[1726246841499,0.20753602,2409.8,2409.7,0.41492]
[1726246841697,0.20753602,2409.8,2409.7,1.83763]
[1726246842097,0.381,2409.9,2409.8,0.4149]
[1726246842299,0.58852412,2409.9,2409.8,3.6549]
[1726246842505,0.3818,2410.0,2409.9,0.41489]
[1726246842704,2.56310842,2410.2,2410.1,0.41485]
[1726246842904,2.37861524,2410.2,2410.1,0.41485]
[1726246843207,2.96540842,2410.3,2410.2,0.41484]
[1726246843402,1.00179004,2410.3,2410.2,7.89974]
[1726246843598,2.17110842,2410.5,2410.4,0.4148]
[1726246843806,2.3785853,2410.5,2410.4,3.24]
[1726246844005,0.4148,2410.4,2410.2,3.62263]
[1726246844200,0.4148,2410.4,2409.9,3.2078]
[1726246844201,2.37071188,2410.3,2409.9,3.2078]
[1726246844404,1.47755274,2410.2,2410.0,0.41486]
[1726246844604,1.87585274,2410.2,2410.0,0.41486]
[1726246845107,1.87585274,2410.2,2410.1,0.41485]
[1726246845808,0.7943,2410.2,2410.1,0.41485]
[1726246846404,0.7943,2410.2,2410.0,3.24]
[1726246846709,2.29069274,2410.2,2410.0,3.65486]
[1726246846920,1.87585274,2410.2,2410.0,3.65486]
[1726246847215,2.29069274,2410.2,2410.0,3.65486]
[1726246847412,1.87585274,2410.2,2410.1,0.41485]
[1726246849111,1.87585274,2410.2,2409.9,3.2078]
[1726246849112,6.02465274,2410.2,2409.9,3.2078]
[1726246849312,1.49650014,2410.1,2409.9,3.62267]
[1726246849513,1.08164014,2410.1,2410.0,0.41487]
[1726246849709,1.49650014,2410.1,2409.9,3.62268]
[1726246849907,1.49651014,2410.0,2409.8,0.4149]
[1726246850113,1.08164014,2409.9,2409.8,0.4149]
[1726246850810,1.49652014,2410.0,2409.8,0.4149]
[1726246851010,1.08164014,2409.9,2409.8,0.4149]
[1726246852415,1.08164014,2409.9,2409.6,3.24]
[1726246852605,1.08164014,2409.9,2409.2,4.4128]
[1726246852606,1.92484014,2409.8,2409.4,3.24]
[1726246852810,1.49657014,2409.7,2409.5,0.41494]
[1726246853022,1.49657014,2409.7,2409.5,0.41495]
[1726246853624,1.49657014,2409.7,2409.6,0.41494]
[1726246854109,0.41494,2409.6,2409.4,3.65497]
[1726246854310,1.49749302,2409.6,2409.4,3.24]
[1726246854510,3.2078,2409.5,2409.4,3.65496]
[1726246855313,3.41537676,2409.5,2409.3,0.41498]
[1726246855514,0.8037,2409.4,2409.3,0.41498]
[1726246855814,1.21867,2409.4,2409.3,0.41498]
[1726246856020,1.21867,2409.4,2409.0,0.41503]
[1726246856021,0.41502,2409.2,2409.0,0.41503]
[1726246856222,1.49822033,2409.1,2408.9,0.41505]
[1726246856522,1.49089033,2409.0,2408.9,0.41505]
[1726246856729,0.8037,2409.0,2408.9,0.41505]
[1726246857222,0.8037,2409.0,2408.9,3.65505]
[1726246857411,1.88751544,2409.0,2408.9,4.69271]
[1726246857611,1.08381544,2409.1,2409.0,0.41504]
[1726246857818,1.08381544,2409.2,2409.0,1.03761]
[1726246858015,1.08381544,2409.2,2409.1,3.65503]
[1726246858214,1.08381544,2409.2,2409.1,4.6926]
[1726246858417,1.08381544,2409.3,2409.2,0.41501]
[1726246858618,1.08381544,2409.3,2409.2,4.69254]
[1726246858821,1.08381544,2409.3,2409.2,8.84294]
[1726246859626,1.08381544,2409.3,2409.2,3.65501]
[1726246860125,0.3995,2409.4,2409.3,0.41499]
[1726246860326,0.60707505,2409.4,2409.3,0.41499]
[1726246860519,5.17245505,2409.4,2409.2,3.655]
[1726246860821,2.977705,2409.4,2409.2,0.415]
[1726246861022,0.20758356,2409.3,2409.2,0.415]
[1726246862628,1.29188234,2409.3,2409.2,13.8054]
[1726246862823,2.163235,2409.7,2409.5,1.0374]
[1726246863016,2.163235,2409.7,2409.6,4.46144]
[1726246863222,2.71764541,2409.9,2409.7,0.41492]
[1726246863223,2.163235,2409.8,2409.7,0.41492]
[1726246863429,2.163235,2409.8,2409.6,4.0465]
[1726246863430,2.16838878,2409.9,2409.8,0.4149]
[1726246864625,2.16838878,2409.9,2409.6,3.65494]
[1726246864826,2.58330878,2409.8,2409.4,3.24]
[1726246865030,1.62533814,2409.6,2409.5,0.41495]
[1726246865236,2.56558878,2409.7,2409.6,0.41494]
[1726246865430,2.56558878,2409.7,2409.4,3.24]
[1726246865431,2.56558878,2409.7,2409.5,0.41494]
[1726246865627,1.62543531,2409.6,2409.5,0.41496]
[1726246866629,2.56558878,2409.7,2409.6,0.41494]
[1726246866630,1.62543531,2409.7,2409.6,0.41494]
[1726246866831,1.62543531,2409.7,2409.6,4.04824]
[1726246867132,1.62543531,2409.7,2409.6,4.46084]
[1726246867330,1.62543531,2409.7,2409.6,5.4982]
[1726246867627,1.62543531,2409.9,2409.8,0.4149]
[1726246867831,2.56558878,2410.1,2409.8,6.4478]
[1726246867832,1.62655039,2410.0,2409.8,6.4478]
[1726246868035,1.62655039,2410.0,2409.9,0.41489]
[1726246869028,2.16838878,2410.1,2410.0,0.41487]
[1726246869221,2.16913314,2410.1,2409.8,6.4478]
[1726246869427,2.02064311,2410.0,2409.9,0.41489]
[1726246869626,1.62684311,2410.0,2409.9,0.41489]
[1726246872027,2.16913314,2410.1,2410.0,1.45205]
[1726246872028,1.62684311,2410.1,2410.0,1.45205]
[1726246872233,1.62684311,2410.2,2410.1,1.45199]
[1726246872436,1.62684311,2410.2,2410.1,8.80939]
[1726246872726,1.62684311,2410.3,2410.2,1.45194]
[1726246872930,1.62684311,2410.3,2410.2,7.80364]
[1726246873122,6.28713314,2410.7,2410.6,0.41477]
[1726246873322,2.16913314,2410.7,2410.6,3.65477]
[1726246873631,1.23346314,2410.9,2410.8,2.48841]
[1726246873820,7.38646302,2411.3,2410.8,2.48841]
[1726246873821,6.83564541,2411.3,2410.8,7.48464]
[1726246874025,2.71764541,2411.4,2411.3,0.41465]
[1726246874224,2.71764541,2411.5,2411.4,0.41463]
[1726246874525,5.92544541,2411.8,2411.6,0.41459]
[1726246874838,3.2078,2411.8,2411.5,3.24]
[1726246875033,3.62236,2411.8,2411.5,3.24]
[1726246875230,3.2078,2411.8,2411.5,3.65461]
[1726246876237,3.2078,2411.8,2411.5,3.24]
[1726246876433,0.41462,2411.5,2411.3,3.24]
[1726246876627,0.3928,2411.4,2411.3,3.24]
[1726246877137,0.3928,2411.4,2411.3,3.65465]
[1726246877431,0.3928,2411.4,2411.3,3.24]
[1726246877826,1.03643,2411.8,2411.3,3.65464]
[1726246877827,0.41461,2411.6,2411.3,3.65464]
[1726246878228,0.41461,2411.5,2411.3,3.24]
[1726246878429,0.41462,2411.5,2411.3,3.24]
[1726246878633,3.6006,2411.7,2411.3,3.24]
[1726246878836,0.4146,2411.6,2411.3,3.65465]
[1726246879033,0.41461,2411.5,2411.3,3.65465]
[1726246879440,3.6006,2411.7,2411.3,0.41465]
[1726246879643,0.41461,2411.5,2411.3,3.65465]
[1726246879937,4.63709,2411.7,2411.3,3.24]
[1726246880137,0.41463,2411.4,2411.3,3.24]
[1726246880333,4.63709,2411.7,2411.3,3.65465]
[1726246880334,0.41463,2411.5,2411.3,3.65465]
[1726246881637,0.41463,2411.5,2411.3,2.20276853]
[1726246882543,0.3976,2411.4,2411.3,2.20276853]
[1726246883242,0.3976,2411.4,2411.1,3.24]
[1726246883536,0.3976,2411.4,2411.2,0.41466]
[1726246883537,0.3968,2411.3,2411.2,0.41466]
[1726246884135,0.81145,2411.3,2411.1,3.65467]
[1726246884441,0.3968,2411.3,2411.2,0.41466]
[1726246885041,4.95866,2411.3,2411.1,3.65468]
[1726246885239,0.3968,2411.3,2411.2,0.41466]
[1726246885538,0.41466,2411.2,2411.1,3.24]
[1726246885740,1.03671,2411.1,2410.7,3.24]
[1726246885937,3.62251,2411.0,2410.8,0.41472]
[1726246886130,0.4307,2410.9,2410.8,0.41472]
[1726246886535,0.837,2410.9,2410.8,0.41472]
[1726246887438,0.837,2410.9,2410.5,3.24]
[1726246887439,10.985,2410.9,2410.5,3.24]
[1726246887640,0.41476,2410.7,2410.5,3.65477]
[1726246887839,0.4198,2410.6,2410.5,3.65477]
[1726246888232,4.5686,2410.6,2410.5,3.65477]
[1726246888731,0.4198,2410.6,2410.5,3.65477]
[1726246889045,1.2456,2411.4,2410.7,1.03686]
[1726246889343,0.8292,2411.3,2411.2,0.41466]
[1726246889645,0.4035,2411.3,2411.2,3.65466]
[1726246890230,0.8515,2411.5,2411.4,0.41463]
[1726246891242,0.8515,2411.5,2411.3,0.41464]
[1726246891638,0.8515,2411.5,2411.4,0.41463]
[1726246892040,4.9987,2411.5,2411.3,0.41464]
[1726246892247,0.8515,2411.5,2411.2,3.24]
[1726246892540,0.8515,2411.5,2411.2,0.41466]
[1726246892541,0.41464,2411.4,2411.2,0.41466]
[1726246892734,0.83634,2411.4,2411.2,0.41466]
[1726246893136,0.4217,2411.4,2411.2,0.41466]
[1726246893549,0.4217,2411.4,2411.1,0.41467]
[1726246893550,0.83634,2411.4,2411.1,0.41467]
[1726246893741,0.83634,2411.4,2411.2,0.41466]
[1726246893937,3.2078,2411.3,2411.2,0.41466]
[1726246894137,7.355,2411.3,2411.2,0.41466]
[1726246895447,13.355,2411.3,2410.8,3.24]
[1726246895641,0.41471,2411.0,2410.8,0.41473]
[1726246895843,1.64043,2410.9,2410.3,4.24485]
[1726246896146,3.2078,2410.8,2410.6,0.41475]
[1726246896343,3.62253,2410.8,2410.6,0.41475]
[1726246896553,7.3558,2410.8,2410.6,0.41475]
[1726246896736,4.148,2410.8,2410.7,0.41475]
[1726246896938,4.148,2410.8,2410.3,4.24485]
[1726246896939,1.64043,2410.9,2410.6,3.24]
[1726246897142,1.64043,2410.9,2410.7,0.41475]
[1726246897547,4.148,2410.8,2410.7,0.41475]
[1726246897754,1.2257,2410.9,2410.7,0.41475]
[1726246898050,1.2257,2410.9,2410.8,3.65473]
[1726246898440,1.2257,2410.9,2410.8,3.24]
[1726246898642,5.3737,2410.9,2410.8,3.24]
[1726246898944,5.3737,2410.9,2410.8,3.65473]
[1726246899145,5.78842,2410.9,2410.8,3.65473]
[1726246899455,0.41474,2410.8,2410.6,3.24]
[1726246899756,3.62254,2410.8,2410.6,3.24]
[1726246899948,4.148,2410.8,2410.6,3.24]
[1726246900147,4.56273,2410.8,2410.6,3.65476]
[1726246900355,4.56275,2410.8,2410.6,3.65476]
[1726246900554,7.77055,2410.8,2410.6,3.65476]
[1726246900950,0.41475,2410.7,2410.6,3.24]
[1726246901451,4.56275,2410.7,2410.6,3.65477]
[1726246901651,4.56275,2410.7,2410.6,3.24]
[1726246903256,1.03698,2410.5,2410.2,3.24]
[1726246903552,0.41482,2410.3,2410.2,3.24]
[1726246904055,0.41484,2410.2,2410.0,3.24]
[1726246904253,3.62265,2410.1,2410.0,3.24]
[1726246904557,3.62265,2410.1,2409.8,3.24]
[1726246904855,4.99338,2410.0,2409.8,3.24]
[1726246905058,0.4154,2409.9,2409.8,3.24]
[1726246905256,4.565,2409.9,2409.8,3.6549]
[1726246905755,4.97989,2409.9,2409.8,3.24]
[1726246905948,5.41009,2409.9,2409.8,3.24]
[1726246906251,0.41493,2409.7,2409.5,0.41495]
[1726246906460,0.41491,2409.8,2409.5,0.41495]
[1726246906760,3.62271,2409.8,2409.5,0.41495]
[1726246907059,3.2078,2409.8,2409.6,0.41494]
[1726246907354,3.2078,2409.8,2409.5,0.41495]
[1726246907552,3.62271,2409.8,2409.5,0.41495]
[1726246907755,3.2078,2409.8,2409.4,3.99]
[1726246908065,3.62271,2409.8,2409.5,0.41494]
[1726246908354,3.62272,2409.8,2409.5,0.41495]
[1726246908546,0.41492,2409.7,2409.4,3.99]
[1726246908746,3.62272,2409.8,2409.5,0.41495]
[1726246908953,3.2078,2409.8,2409.6,0.41494]
[1726246909263,3.2078,2409.8,2409.7,0.41492]
[1726246909557,3.2078,2409.8,2409.6,4.40493]
[1726246909755,7.3574,2409.8,2409.6,4.40493]
[1726246909955,3.62271,2409.8,2409.6,4.40493]
[1726246910251,7.3574,2409.8,2409.6,4.40493]
[1726246910456,3.62271,2409.8,2409.6,4.40493]
[1726246910659,7.3574,2409.8,2409.6,4.40493]
[1726246911054,7.3574,2409.8,2409.7,0.41492]
[1726246911055,3.2078,2409.8,2409.7,0.41492]
[1726246911256,0.8456,2409.9,2409.6,3.99]
[1726246911257,0.4154,2409.9,2409.8,0.4149]
[1726246911454,3.2078,2410.2,2409.7,1.03731]
[1726246911765,3.2078,2410.2,2410.1,0.41485]
[1726246911959,4.118,2410.3,2410.1,0.41485]
[1726246912154,4.118,2410.3,2410.2,0.41484]
[1726246912350,4.118,2410.3,2410.2,3.62264]
[1726246912854,4.118,2410.3,2410.2,0.41484]
[1726246913273,0.4241,2410.6,2410.5,0.41478]
[1726246913866,0.4241,2410.6,2410.3,3.99]
[1726246914363,0.4241,2410.6,2410.4,0.41479]
[1726246915959,0.4241,2410.6,2410.5,0.41478]
[1726246916755,3.2078,2410.8,2410.6,0.41477]
[1726246916756,3.62254,2410.8,2410.6,0.41477]
[1726246916955,3.62254,2410.8,2410.5,0.41477]
[1726246917253,3.2078,2410.8,2410.7,0.41475]
[1726246917664,0.4169,2411.0,2410.6,3.99]
[1726246917960,0.4169,2411.0,2410.9,0.41472]
[1726246918167,0.8316,2411.0,2410.8,0.41472]
[1726246918352,0.8316,2411.0,2410.7,0.41475]
[1726246918353,0.41472,2410.9,2410.7,0.41475]
[1726246918554,0.83161,2411.0,2410.8,0.41473]
[1726246918957,0.41473,2410.8,2410.6,0.41475]
[1726246919262,4.24461,2410.9,2410.4,4.7953]
[1726246919469,4.24461,2410.9,2410.6,0.41476]
[1726246919470,0.80454,2410.8,2410.6,0.41476]
[1726246920261,0.41475,2410.7,2410.6,0.41477]
[1726246920459,0.80454,2410.8,2410.7,0.41475]
[1726246920665,1.22304,2410.8,2410.6,0.41475]
[1726246921461,1.22305,2410.8,2410.6,0.41475]
[1726246921656,0.8083,2410.8,2410.6,0.41475]
[1726246921861,4.148,2410.7,2410.6,0.41475]
[1726246922165,4.148,2410.7,2410.4,4.7953]
[1726246922166,0.3898,2410.8,2410.7,0.41475]
[1726246923065,2.15982403,2411.0,2410.7,5.02688]
[1726246923363,2.98221403,2411.1,2410.9,0.41472]
[1726246923568,0.6221466,2411.0,2410.9,0.41472]
[1726246923868,0.2074466,2411.0,2410.9,0.41472]
[1726246924355,2.36727063,2411.0,2410.9,0.41472]
[1726246924555,2.78197063,2411.0,2410.9,0.41472]
[1726246924858,0.41473,2410.8,2410.7,0.41474]
[1726246925050,4.24461,2410.9,2410.4,4.7953]
[1726246925257,0.7916,2410.7,2410.6,0.41477]
[1726246925457,1.20635,2410.7,2410.6,0.41477]
[1726246925662,1.20635,2410.7,2410.5,0.41477]
[1726246925865,0.4107,2410.6,2410.4,3.99]
[1726246926259,2.95142403,2410.7,2410.2,1.44589]
[1726246926462,2.15982403,2410.8,2410.7,0.41475]
[1726246926667,0.20746828,2410.8,2410.7,3.65475]
[1726246926969,2.36729231,2410.8,2410.7,3.65475]
[1726246927358,2.78201603,2410.8,2410.7,3.65475]
[1726246927869,2.36728603,2410.8,2410.7,3.65475]
[1726246928275,2.78201603,2410.8,2410.7,3.24]
[1726246928468,0.622192,2410.8,2410.7,3.24]
[1726246929676,0.622192,2410.8,2410.7,3.65475]
[1726246929874,0.207462,2410.8,2410.7,3.65475]
[1726246930075,2.37206483,2410.8,2410.7,3.65475]
[1726246930365,2.16460283,2410.9,2410.8,0.41473]
[1726246930571,0.20744766,2410.9,2410.8,0.80643]
[1726246930774,2.16460283,2411.1,2411.0,0.4147]
[1726246930964,2.16460283,2411.2,2411.1,0.41468]
[1726246931160,2.37202692,2411.2,2411.1,0.41468]
[1726246931361,2.16460283,2411.3,2411.2,0.41466]
[1726246931564,2.16460283,2411.4,2411.2,3.24]
[1726246931759,0.20740618,2411.4,2411.3,0.41464]
[1726246931972,2.57922283,2411.5,2411.2,3.24]
[1726246931973,2.56800283,2411.6,2411.2,3.24]
[1726246932172,2.98260283,2411.6,2411.5,3.24]
[1726246932466,0.61078975,2411.6,2411.5,3.65461]
[1726246933270,1.02538975,2411.6,2411.5,3.24]
[1726246933564,2.44036562,2411.6,2411.5,3.65461]
[1726246933774,2.2331486,2411.6,2411.5,3.65461]
[1726246934072,0.4034,2411.6,2411.5,3.65461]
[1726246934772,0.818,2411.6,2411.5,3.24]
[1726246935159,2.44036562,2411.6,2411.4,0.41462]
[1726246935566,0.41463,2411.4,2411.3,3.24]
[1726246935762,2.03699562,2411.4,2411.3,3.65465]
[1726246936467,2.03699562,2411.4,2411.3,0.41465]
[1726246937264,0.41463,2411.4,2411.3,0.41465]
[1726246937579,0.41463,2411.4,2411.2,0.41465]
[1726246937973,2.03699562,2411.4,2411.3,0.41465]
[1726246938167,2.24441396,2411.4,2411.3,0.41465]
[1726246938476,2.24441168,2411.4,2411.3,0.41465]
[1726246938869,2.03699562,2411.4,2411.3,0.41465]
[1726246939070,1.62236562,2411.4,2411.3,3.65465]
[1726246939378,1.62236562,2411.5,2411.4,0.41463]
[1726246939571,2.02553121,2411.6,2411.4,0.41462]
[1726246939767,1.62213121,2411.5,2411.4,0.41462]
[1726246940674,1.62213121,2411.5,2411.3,3.65464]
[1726246940876,2.03675121,2411.5,2411.3,3.24]
[1726246941067,1.62213121,2411.5,2411.4,0.41463]
[1726246941269,1.82954003,2411.5,2411.4,0.41463]
[1726246941467,6.18399339,2411.5,2411.3,3.65463]
[1726246941668,2.03679339,2411.5,2411.4,0.41463]
[1726246941869,2.20382592,2411.5,2411.3,3.24]
[1726246942067,2.70345229,2411.4,2411.3,3.24]
[1726246942373,4.69987542,2411.4,2411.3,3.65465]
[1726246942568,4.90727821,2411.4,2411.3,3.65465]
[1726246943266,5.32190821,2411.4,2411.3,3.24]
[1726246943466,0.20740279,2411.4,2411.3,3.65465]
[1726246943671,2.1621999,2411.4,2411.3,3.65465]
[1726246943870,2.36960269,2411.4,2411.3,6.86245]
[1726246944076,2.1621999,2411.4,2411.3,6.86245]
[1726246944278,2.36960269,2411.4,2411.3,7.26985]
[1726246944781,0.20740279,2411.4,2411.3,7.26985]
[1726246945273,2.36960269,2411.4,2411.3,4.06205]
[1726246945978,2.3695944,2411.4,2411.3,4.06205]
[1726246946472,2.3695944,2411.4,2411.3,3.65465]
[1726246946667,2.1621999,2411.4,2411.3,3.65465]
[1726246946868,2.5768299,2411.4,2411.3,3.24]